fUST/lending_fUST_20240119
["ID","MTS","AMOUNT","RATE_DAILY","PERIOD"]
[312088386,1705608650123,-150.30083188,0.00041269,14]
[312088387,1705608650134,-150.30083188,0.00041269,14]
[312088388,1705608650143,-150.30083188,0.00041269,14]
[312088389,1705608650153,-150.30083188,0.00041269,14]
[312088390,1705608650162,-150.30083188,0.00041269,14]
[312088391,1705608650171,-150.30083188,0.00041269,14]
[312088392,1705608650181,-150.30083188,0.00041269,14]
[312088393,1705608650193,-150.30083188,0.00041269,14]
[312088394,1705608650208,-150.30083188,0.00041269,14]
[312088395,1705608650218,-150.30083188,0.00041269,14]
[312088396,1705608650228,-150.30083188,0.00041269,14]
[312088398,1705608650237,-150.30083188,0.00041269,14]
[312088400,1705608650246,-150.30083188,0.00041269,14]
[312088401,1705608650255,-150.30083188,0.00041269,14]
[312088406,1705608650322,-181.66666667,0.00041269,14]
[312088407,1705608650333,-181.66666667,0.00041269,14]
[312088408,1705608650342,-199.14077369,0.00041269,14]
[312088409,1705608650351,-150.30083188,0.00041294,14]
[312088410,1705608650360,-151.0,0.00041309,21]
[312088411,1705608650370,-151.0,0.00041352,21]
[312088412,1705608650379,-155.01548915,0.00041367,2]
[312088413,1705608650390,-535.63569658,0.00041367,2]
[312088414,1705608650399,-159.30114727,0.00041367,2]
[312088415,1705608650408,-300.35210216,0.00041368,7]
[312088416,1705608650418,-179.60865475,0.00041368,7]
[312088417,1705608650427,-573.13545203,0.00041368,7]
[312088419,1705608650436,-500.0,0.00041368,7]
[312088421,1705608650445,-524.02060024,0.00041368,7]
[312088423,1705608650454,-178.83619526,0.00041369,4]
[312088424,1705608650463,-155.06357607,0.00041369,4]
[312088426,1705608650472,-546.95952545,0.00041369,4]
[312088428,1705608650482,-500.0,0.00041369,30]
[312088429,1705608650491,-500.0,0.00041369,30]
[312088431,1705608650501,-500.0,0.00041369,30]
[312088432,1705608650510,-500.0,0.00041369,7]
[312088434,1705608650519,-500.0,0.00041369,30]
[312088435,1705608650529,-500.0,0.00041369,30]
[312088437,1705608650538,-500.0,0.00041369,30]
[312088439,1705608650547,-500.0,0.00041369,30]
[312088441,1705608650556,-500.0,0.00041369,30]
[312088442,1705608650566,-500.0,0.00041369,30]
[312088443,1705608650575,-350.0,0.00041369,30]
[312088445,1705608650585,-500.0,0.00041369,30]
[312088446,1705608650594,-211.58229564,0.00041369,30]
[312088447,1705608650604,-636.32,0.00041369,30]
[312088448,1705608650614,-500.0,0.00041369,30]
[312088449,1705608650624,-500.0,0.00041369,30]
[312088450,1705608650634,-833.7,0.00041369,30]
[312088451,1705608650645,-500.0,0.00041369,30]
[312088452,1705608650655,-500.0,0.00041369,30]
[312088453,1705608650664,-500.0,0.00041369,30]
[312088454,1705608650674,-500.0,0.00041369,30]
[312088455,1705608650685,-373.5142545,0.00041369,30]
[312088457,1705608650696,-500.0,0.00041369,30]
[312088459,1705608650705,-500.0,0.00041369,2]
[312088460,1705608650715,-500.0,0.00041369,30]
[312088462,1705608650724,-220.29516011,0.00041369,2]
[312088464,1705608650733,-500.0,0.00041369,30]
[312088466,1705608650743,-501.99862729,0.00041369,30]
[312088467,1705608650752,-500.0,0.00041369,30]
[312088469,1705608650762,-500.0,0.00041369,30]
[312088471,1705608650772,-500.0,0.00041369,7]
[312088472,1705608650785,-607.55,0.00041369,30]
[312088473,1705608650794,-500.0,0.00041369,30]
[312088474,1705608650804,-500.77064087,0.00041369,30]
[312088475,1705608650814,-500.0,0.00041369,30]
[312088476,1705608650823,-500.0,0.00041369,30]
[312088477,1705608650834,-500.0,0.00041369,30]
[312088478,1705608650843,-500.0,0.00041369,30]
[312088479,1705608650853,-1543.94,0.00041369,30]
[312088480,1705608650862,-500.55436778,0.00041369,30]
[312088481,1705608650871,-500.0,0.00041369,30]
[312088482,1705608650881,-500.0,0.00041369,30]
[312088483,1705608650891,-500.0,0.00041369,30]
[312088484,1705608650900,-536.72114219,0.00041369,30]
[312088485,1705608650909,-500.0,0.00041369,30]
[312088486,1705608650918,-500.0,0.00041369,30]
[312088487,1705608650928,-500.0,0.00041369,30]
[312088488,1705608650937,-559.6452671,0.00041369,30]
[312088489,1705608650946,-500.0,0.00041369,30]
[312088490,1705608650955,-500.0,0.00041369,30]
[312088491,1705608650964,-500.0,0.00041369,30]
[312088492,1705608650973,-500.0,0.00041369,30]
[312088493,1705608650982,-500.0,0.00041369,30]
[312088494,1705608650991,-556.83143549,0.00041369,2]
[312088495,1705608651000,-500.0,0.00041369,30]
[312088496,1705608651009,-500.0,0.00041369,30]
[312088497,1705608651019,-500.0,0.00041369,30]
[312088498,1705608651028,-500.0,0.00041369,30]
[312088499,1705608651038,-192.7739854,0.00041369,30]
[312088500,1705608651047,-502.49825283,0.00041369,30]
[312088501,1705608651057,-500.0,0.00041369,30]
[312088502,1705608651066,-689.99,0.00041369,30]
[312088503,1705608651075,-569.78275668,0.00041369,30]
[312088504,1705608651084,-513.67836503,0.00041369,30]
[312088505,1705608651094,-500.0,0.00041369,30]
[312088506,1705608651103,-501.68443412,0.00041369,30]
[312088507,1705608651112,-521.51352694,0.00041369,30]
[312088508,1705608651121,-950.0,0.00041369,2]
[312088509,1705608651131,-500.0,0.00041369,30]
[312088510,1705608651142,-328.97517033,0.00041369,30]
[312088511,1705608651151,-223.54362701,0.00041369,30]
[312088512,1705608651160,-1724.64,0.00041369,30]
[312088513,1705608651169,-512.16962409,0.00041369,30]
[312088514,1705608651178,-500.74137746,0.00041369,30]
[312088515,1705608651188,-500.0,0.00041369,30]
[312088516,1705608651198,-500.0,0.00041369,30]
[312088517,1705608651210,-500.0,0.00041369,7]
[312088518,1705608651221,-503.86156984,0.00041369,30]
[312088519,1705608651230,-500.0,0.00041369,30]
[312088520,1705608651240,-500.0,0.00041369,30]
[312088521,1705608651250,-526.45,0.00041369,30]
[312088522,1705608651259,-550.0,0.00041369,30]
[312088523,1705608651268,-509.39814518,0.00041369,30]
[312088524,1705608651277,-643.57480652,0.00041369,30]
[312088525,1705608651288,-500.0,0.00041369,30]
[312088526,1705608651298,-500.0,0.00041369,30]
[312088527,1705608651365,-500.0,0.00041369,30]
[312088528,1705608651375,-502.05601995,0.00041369,30]
[312088529,1705608651386,-500.0,0.00041369,30]
[312088530,1705608651395,-500.0,0.00041369,30]
[312088531,1705608651405,-507.34713246,0.00041369,30]
[312088532,1705608651414,-502.2126617,0.00041369,30]
[312088533,1705608651423,-500.0,0.00041369,30]
[312088534,1705608651433,-309.90649208,0.00041369,30]
[312088535,1705608651443,-500.0,0.00041369,30]
[312088536,1705608651453,-500.0,0.00041369,30]
[312088537,1705608651462,-954.28,0.00041369,30]
[312088538,1705608651471,-500.0,0.00041369,30]
[312088539,1705608651481,-500.0,0.00041369,30]
[312088540,1705608651490,-500.0,0.00041369,30]
[312088541,1705608651500,-500.0,0.00041369,30]
[312088542,1705608651509,-507.86439986,0.00041369,30]
[312088543,1705608651518,-500.0,0.00041369,30]
[312088544,1705608651528,-500.39094438,0.00041369,30]
[312088545,1705608651538,-500.0,0.00041369,30]
[312088546,1705608651547,-534.88438444,0.00041369,30]
[312088547,1705608651558,-188.37173671,0.00041369,30]
[312088548,1705608651567,-500.0,0.00041369,30]
[312088549,1705608651578,-503.30353569,0.00041369,30]
[312088550,1705608651588,-500.0,0.00041369,30]
[312088551,1705608651597,-500.0,0.00041369,30]
[312088552,1705608651607,-500.0,0.00041369,30]
[312088553,1705608651616,-500.0,0.00041369,30]
[312088554,1705608651626,-501.30454167,0.00041369,30]
[312088555,1705608651637,-626.48,0.00041369,30]
[312088556,1705608651646,-501.73831106,0.00041369,30]
[312088557,1705608651656,-500.0,0.00041369,30]
[312088558,1705608651666,-198.94788818,0.00041369,30]
[312088559,1705608651676,-502.47968267,0.00041369,30]
[312088560,1705608651686,-503.11567998,0.00041369,30]
[312088561,1705608651696,-500.0,0.00041369,30]
[312088562,1705608651706,-500.0,0.00041369,30]
[312088563,1705608651717,-500.0,0.00041369,30]
[312088564,1705608651727,-500.0,0.00041369,30]
[312088565,1705608651737,-500.0,0.00041369,30]
[312088566,1705608651747,-500.0,0.00041369,30]
[312088567,1705608651757,-500.0,0.00041369,30]
[312088568,1705608651767,-500.0,0.00041369,30]
[312088569,1705608651777,-691.8975842,0.00041369,2]
[312088570,1705608651786,-500.0,0.00041369,30]
[312088571,1705608651796,-500.0,0.00041369,30]
[312088572,1705608651806,-500.0,0.00041369,30]
[312088573,1705608651815,-500.0,0.00041369,30]
[312088574,1705608651825,-500.0,0.00041369,30]
[312088575,1705608651834,-500.0,0.00041369,30]
[312088576,1705608651843,-500.53372034,0.00041369,30]
[312088577,1705608651852,-500.0,0.00041369,30]
[312088578,1705608651862,-500.0,0.00041369,30]
[312088579,1705608651871,-680.59,0.00041369,30]
[312088580,1705608651881,-263.15611797,0.00041369,30]
[312088581,1705608651892,-500.0,0.00041369,30]
[312088582,1705608651903,-500.0,0.00041369,30]
[312088583,1705608651912,-500.0,0.00041369,30]
[312088584,1705608651921,-500.0,0.00041369,30]
[312088585,1705608651930,-500.0,0.00041369,30]
[312088586,1705608651939,-500.0,0.00041369,30]
[312088587,1705608651947,-508.23651384,0.00041369,30]
[312088588,1705608651957,-500.0,0.00041369,30]
[312088589,1705608651967,-474.89250005,0.00041369,30]
[312088590,1705608651977,-500.0,0.00041369,30]
[312088591,1705608651986,-605.0,0.00041369,30]
[312088592,1705608651995,-500.0,0.00041369,30]
[312088593,1705608652005,-1000.0,0.00041369,5]
[312088594,1705608652015,-500.0,0.00041369,30]
[312088595,1705608652023,-500.0,0.00041369,30]
[312088596,1705608652034,-500.0,0.00041369,30]
[312088597,1705608652043,-500.0,0.00041369,30]
[312088598,1705608652052,-500.0,0.00041369,30]
[312088599,1705608652062,-1084.63,0.00041369,30]
[312088600,1705608652071,-504.8200028,0.00041369,30]
[312088601,1705608652081,-504.10090729,0.00041369,30]
[312088602,1705608652090,-500.0,0.00041369,30]
[312088603,1705608652100,-500.0,0.00041369,30]
[312088604,1705608652109,-500.0,0.00041369,30]
[312088605,1705608652119,-500.0,0.00041369,30]
[312088606,1705608652129,-499.88527745,0.00041369,30]
[312088607,1705608652138,-502.14821897,0.00041369,30]
[312088608,1705608652147,-500.0,0.00041369,30]
[312088609,1705608652156,-368.2554672,0.00041369,30]
[312088610,1705608652165,-500.0,0.00041369,30]
[312088611,1705608652175,-500.0,0.00041369,30]
[312088612,1705608652184,-500.0,0.00041369,30]
[312088613,1705608652194,-704.01,0.00041369,14]
[312088614,1705608652206,-500.0,0.00041369,30]
[312088615,1705608652215,-634.82,0.00041369,30]
[312088616,1705608652224,-443.9601873,0.00041369,30]
[312088617,1705608652233,-500.0,0.00041369,30]
[312088618,1705608652245,-507.23095227,0.00041369,30]
[312088619,1705608652254,-500.58898887,0.00041369,30]
[312088620,1705608652263,-504.99042001,0.00041369,30]
[312088621,1705608652273,-10028.89721791,0.00041369,10]
[312088622,1705608652284,-392.35720764,0.00041369,30]
[312088623,1705608652347,-500.0,0.00041369,30]
[312088624,1705608652357,-500.0,0.00041369,30]
[312088625,1705608652366,-500.0,0.00041369,30]
[312088626,1705608652375,-500.53370218,0.00041369,30]
[312088627,1705608652384,-500.0,0.00041369,30]
[312088628,1705608652395,-500.0,0.00041369,30]
[312088629,1705608652404,-500.0,0.00041369,30]
[312088630,1705608652413,-500.0,0.00041369,30]
[312088631,1705608652422,-500.0,0.00041369,30]
[312088632,1705608652430,-507.81839334,0.00041369,30]
[312088633,1705608652439,-500.0,0.00041369,30]
[312088634,1705608652448,-500.0,0.00041369,30]
[312088635,1705608652457,-500.0,0.00041369,30]
[312088636,1705608652466,-500.0,0.00041369,30]
[312088637,1705608652475,-500.0,0.00041369,30]
[312088638,1705608652484,-500.0,0.00041369,30]
[312088639,1705608652493,-500.0,0.00041369,30]
[312088640,1705608652502,-554.32883604,0.00041369,30]
[312088641,1705608652511,-500.0,0.00041369,30]
[312088642,1705608652521,-1196.8,0.00041369,30]
[312088643,1705608652530,-500.0,0.00041369,30]
[312088644,1705608652538,-500.0,0.00041369,30]
[312088645,1705608652547,-500.0,0.00041369,30]
[312088646,1705608652556,-1384.52,0.00041369,30]
[312088647,1705608652565,-611.96,0.00041369,30]
[312088648,1705608652573,-500.0,0.00041369,30]
[312088649,1705608652582,-500.0,0.00041369,30]
[312088650,1705608652591,-2354.22,0.00041369,30]
[312088651,1705608652600,-527.4649401,0.00041369,30]
[312088652,1705608652609,-500.0,0.00041369,30]
[312088653,1705608652618,-644.16,0.00041369,30]
[312088654,1705608652628,-500.0,0.00041369,30]
[312088655,1705608652638,-500.0,0.00041369,30]
[312088656,1705608652647,-500.0,0.00041369,30]
[312088657,1705608652656,-500.0,0.00041369,30]
[312088658,1705608652666,-500.0,0.00041369,30]
[312088659,1705608652675,-500.0,0.00041369,30]
[312088660,1705608652685,-500.0,0.00041369,30]
[312088661,1705608652694,-631.7872854,0.00041369,30]
[312088662,1705608652703,-504.7551472,0.00041369,30]
[312088663,1705608652712,-503.80366804,0.00041369,30]
[312088664,1705608652722,-380.54793533,0.00041369,30]
[312088665,1705608652731,-501.57,0.00041369,30]
[312088666,1705608652741,-501.76193937,0.00041369,30]
[312088667,1705608652756,-479.73835207,0.00041369,30]
[312088668,1705608653005,-20.26164793,0.00041369,30]
[312088669,1705608653019,-500.0,0.00041369,30]
[312088670,1705608653033,-509.42332748,0.00041369,30]
[312088671,1705608653046,-1129.81,0.00041369,30]
[312088672,1705608653062,-2587.02274439,0.00041369,30]
[312088673,1705608653079,-269.71725561,0.00041369,30]
[312088674,1705608653093,-500.0,0.00041369,30]
[312088675,1705608653102,-500.0,0.00041369,30]
[312088676,1705608653111,-23764.01,0.00041369,14]
[312088677,1705608653121,-2945.88,0.00041369,30]
[312088678,1705608653130,-500.0,0.00041369,30]
[312088679,1705608653139,-201.65120246,0.00041369,30]
[312088680,1705608653148,-500.0,0.00041369,30]
[312088681,1705608653159,-500.0,0.00041369,30]
[312088682,1705608653168,-500.0,0.00041369,30]
[312088683,1705608653177,-503.97861096,0.00041369,30]
[312088684,1705608653186,-3286.51,0.00041369,30]
[312088685,1705608653197,-2407.5,0.00041369,30]
[312088686,1705608653208,-5702.17,0.00041369,30]
[312088687,1705608653217,-502.26717472,0.00041369,30]
[312088688,1705608653351,-500.0,0.00041369,30]
[312088689,1705608653366,-500.0,0.00041369,30]
[312088690,1705608653376,-500.0,0.00041369,30]
[312088691,1705608653385,-500.0,0.00041369,30]
[312088692,1705608653395,-512.67628657,0.00041369,30]
[312088693,1705608653405,-502.46808783,0.00041369,30]
[312088694,1705608653414,-1088.91,0.00041369,30]
[312088695,1705608653423,-500.0,0.00041369,30]
[312088696,1705608653432,-500.0,0.00041369,30]
[312088697,1705608653441,-500.0,0.00041369,30]
[312088698,1705608653450,-500.0,0.00041369,30]
[312088699,1705608653459,-725.73,0.00041369,30]
[312088700,1705608653468,-500.0,0.00041369,30]
[312088701,1705608653477,-500.0,0.00041369,30]
[312088702,1705608653486,-500.0,0.00041369,30]
[312088703,1705608653494,-501.31020996,0.00041369,30]
[312088704,1705608653503,-500.0,0.00041369,30]
[312088705,1705608653512,-150.0,0.00041369,30]
[312088706,1705608653521,-169.43731133,0.00041369,30]
[312088707,1705608653530,-501.36601449,0.00041369,30]
[312088708,1705608653541,-500.0,0.00041369,20]
[312088709,1705608653551,-500.0,0.00041369,30]
[312088710,1705608653560,-1062.13,0.00041369,30]
[312088711,1705608653569,-500.0,0.00041369,30]
[312088712,1705608653579,-1219.76,0.00041369,30]
[312088713,1705608653588,-14825.1,0.00041369,30]
[312088714,1705608653598,-1577.79,0.00041369,30]
[312088715,1705608653607,-4998.78,0.00041369,30]
[312088716,1705608653616,-500.0,0.00041369,30]
[312088717,1705608653625,-500.0,0.00041369,30]
[312088718,1705608653634,-500.0,0.00041369,30]
[312088719,1705608653646,-500.0,0.00041369,30]
[312088720,1705608653655,-500.0,0.00041369,30]
[312088721,1705608653664,-500.0,0.00041369,30]
[312088722,1705608653674,-502.10615641,0.00041369,30]
[312088723,1705608653683,-500.0,0.00041369,30]
[312088724,1705608653693,-500.0,0.00041369,30]
[312088725,1705608653704,-500.0,0.00041369,30]
[312088726,1705608653714,-500.0,0.00041369,30]
[312088727,1705608653723,-500.0,0.00041369,30]
[312088728,1705608653732,-500.0,0.00041369,30]
[312088729,1705608653741,-7008.26,0.00041369,30]
[312088730,1705608653750,-500.0,0.00041369,30]
[312088731,1705608653759,-1236.92,0.00041369,30]
[312088732,1705608653769,-500.0,0.00041369,30]
[312088733,1705608653778,-599.2813958,0.00041369,30]
[312088734,1705608653787,-500.0,0.00041369,30]
[312088735,1705608653797,-537.24,0.00041369,30]
[312088736,1705608653806,-6394.2,0.00041369,30]
[312088737,1705608653815,-500.0,0.00041369,30]
[312088738,1705608653825,-500.0,0.00041369,30]
[312088739,1705608653834,-883.38,0.00041369,30]
[312088740,1705608653843,-230.48355744,0.00041369,30]
[312088741,1705608653852,-500.0,0.00041369,30]
[312088742,1705608653861,-500.0,0.00041369,30]
[312088743,1705608653871,-501.46121602,0.00041369,30]
[312088744,1705608653880,-500.0,0.00041369,30]
[312088745,1705608653889,-500.0,0.00041369,30]
[312088746,1705608653898,-500.0,0.00041369,30]
[312088747,1705608653907,-500.0,0.00041369,30]
[312088748,1705608653917,-2063.25,0.00041369,30]
[312088749,1705608653926,-501.26033619,0.00041369,30]
[312088750,1705608653935,-500.0,0.00041369,30]
[312088751,1705608653944,-558.04977188,0.00041369,30]
[312088752,1705608653953,-500.0,0.00041369,5]
[312088753,1705608653962,-500.0,0.00041369,30]
[312088754,1705608653971,-500.0,0.00041369,30]
[312088755,1705608653980,-500.74341688,0.00041369,30]
[312088756,1705608653990,-500.0,0.00041369,30]
[312088757,1705608654000,-531.85235141,0.00041369,30]
[312088758,1705608654011,-500.0,0.00041369,30]
[312088759,1705608654021,-500.0,0.00041369,30]
[312088760,1705608654031,-500.0,0.00041369,30]
[312088761,1705608654040,-500.0,0.00041369,30]
[312088762,1705608654049,-500.0,0.00041369,30]
[312088763,1705608654058,-332.77454815,0.00041369,30]
[312088764,1705608654067,-500.0,0.00041369,30]
[312088765,1705608654076,-500.0,0.00041369,30]
[312088766,1705608654085,-527.63841557,0.00041369,30]
[312088767,1705608654094,-500.0,0.00041369,30]
[312088768,1705608654104,-500.0,0.00041369,30]
[312088769,1705608654113,-1745.55,0.00041369,30]
[312088770,1705608654123,-866.39,0.00041369,30]
[312088771,1705608654132,-2620.78,0.00041369,30]
[312088772,1705608654142,-500.0,0.00041369,30]
[312088773,1705608654151,-500.0,0.00041369,30]
[312088774,1705608654159,-500.0,0.00041369,30]
[312088775,1705608654168,-500.0,0.00041369,30]
[312088776,1705608654177,-500.0,0.00041369,30]
[312088777,1705608654186,-500.89027752,0.00041369,30]
[312088778,1705608654197,-2132.43,0.00041369,30]
[312088779,1705608654208,-501.78249333,0.00041369,30]
[312088780,1705608654217,-3218.98,0.00041369,30]
[312088781,1705608654226,-3343.02,0.00041369,30]
[312088782,1705608654236,-508.99646592,0.00041369,30]
[312088783,1705608654245,-500.0,0.00041369,30]
[312088784,1705608654255,-500.0,0.00041369,30]
[312088785,1705608654264,-500.0,0.00041369,7]
[312088786,1705608654273,-500.0,0.00041369,2]
[312088787,1705608654282,-500.0,0.00041369,30]
[312088788,1705608654291,-500.0,0.00041369,2]
[312088789,1705608654300,-151.0,0.00041369,7]
[312088790,1705608654309,-151.0,0.00041369,7]
[312088791,1705608654319,-248.589081,0.00041369,7]
[312088792,1705608654328,-151.0,0.00041369,7]
[312088793,1705608654337,-151.0,0.00041369,7]
[312088794,1705608654347,-151.0,0.00041369,7]
[312088795,1705608654356,-151.0,0.00041369,7]
[312088796,1705608654365,-244.442505,0.00041369,7]
[312088797,1705608654374,-3623.526008,0.00041369,7]
[312088798,1705608654382,-3623.526008,0.00041369,7]
[312088799,1705608654392,-3623.526008,0.00041369,7]
[312088800,1705608654401,-3623.526008,0.00041369,7]
[312088801,1705608654410,-150.0,0.0004137,90]
[312088802,1705608654420,-16624.00396575,0.00041394,2]
[312088803,1705608654429,-151.0,0.00041395,21]
[312088804,1705608654438,-1677.40187877,0.00041399,14]
[312088805,1705608654447,-151.0,0.00041438,21]
[312088806,1705608654456,-1478.85800466,0.00041478,34]
[312088807,1705608654465,-151.0,0.0004148,21]
[312088808,1705608654474,-777.0,0.000415,4]
[312088809,1705608654483,-151.0,0.00041523,21]
[312088810,1705608654492,-418.571,0.00041524,30]
[312088811,1705608654501,-151.0,0.00041566,21]
[312088812,1705608654510,-471.0,0.000416,30]
[312088813,1705608654518,-151.0,0.00041609,21]
[312088814,1705608654527,-5536.70289086,0.00041639,2]
[312088815,1705608654536,-289.99999618,0.00041641,4]
[312088816,1705608654545,-15000.0,0.00041641,30]
[312088817,1705608654554,-364.06569522,0.00041642,4]
[312088818,1705608654563,-234.32296402,0.00041643,30]
[312088819,1705608654573,-500.0,0.00041643,30]
[312088820,1705608654582,-500.0,0.00041643,30]
[312088821,1705608654592,-500.0,0.00041643,7]
[312088822,1705608654601,-500.0,0.00041643,30]
[312088823,1705608654611,-500.0,0.00041643,30]
[312088824,1705608654621,-500.0,0.00041643,30]
[312088825,1705608654630,-500.0,0.00041643,30]
[312088826,1705608654641,-500.0,0.00041643,30]
[312088827,1705608654650,-500.0,0.00041643,30]
[312088828,1705608654660,-500.0,0.00041643,30]
[312088829,1705608654670,-636.32,0.00041643,30]
[312088830,1705608654681,-500.0,0.00041643,30]
[312088831,1705608654692,-500.0,0.00041643,30]
[312088832,1705608654702,-833.7,0.00041643,30]
[312088833,1705608654711,-512.23425571,0.00041643,30]
[312088834,1705608654722,-430.98156131,0.00041643,30]
[312088835,1705608654731,-503.81305694,0.00041643,30]
[312088836,1705608654741,-501.8791705,0.00041643,30]
[312088837,1705608654751,-500.0,0.00041643,30]
[312088838,1705608654761,-500.0,0.00041643,2]
[312088839,1705608654770,-500.0,0.00041643,30]
[312088840,1705608654779,-500.0,0.00041643,30]
[312088841,1705608654789,-500.0,0.00041643,30]
[312088842,1705608654799,-500.49883489,0.00041643,30]
[312088843,1705608654808,-500.0,0.00041643,7]
[312088844,1705608654819,-607.55,0.00041643,30]
[312088845,1705608654828,-500.0,0.00041643,30]
[312088846,1705608654837,-271.5670683,0.00041643,30]
[312088847,1705608654846,-500.0,0.00041643,30]
[312088848,1705608654855,-512.34129118,0.00041643,30]
[312088849,1705608654864,-500.0,0.00041643,30]
[312088850,1705608654873,-1543.94,0.00041643,30]
[312088851,1705608654882,-500.0,0.00041643,30]
[312088852,1705608654893,-512.38150394,0.00041643,30]
[312088853,1705608654903,-500.0,0.00041643,30]
[312088854,1705608654912,-500.0,0.00041643,30]
[312088855,1705608654921,-500.0,0.00041643,30]
[312088856,1705608654931,-500.0,0.00041643,30]
[312088857,1705608654940,-500.0,0.00041643,30]
[312088858,1705608654949,-500.0,0.00041643,30]
[312088859,1705608654959,-500.0,0.00041643,30]
[312088860,1705608654968,-500.0,0.00041643,30]
[312088861,1705608654978,-500.0,0.00041643,30]
[312088862,1705608654987,-500.0,0.00041643,30]
[312088863,1705608654997,-500.0,0.00041643,30]
[312088864,1705608655007,-500.0,0.00041643,30]
[312088865,1705608655016,-500.0,0.00041643,30]
[312088866,1705608655025,-500.0,0.00041643,30]
[312088867,1705608655034,-689.99,0.00041643,30]
[312088868,1705608655044,-500.0,0.00041643,30]
[312088869,1705608655053,-950.0,0.00041643,2]
[312088870,1705608655062,-500.0,0.00041643,30]
[312088871,1705608655071,-1724.64,0.00041643,30]
[312088872,1705608655081,-500.0,0.00041643,30]
[312088873,1705608655090,-500.0,0.00041643,30]
[312088874,1705608655099,-500.0,0.00041643,7]
[312088875,1705608655109,-605.57316236,0.00041643,30]
[312088876,1705608655118,-500.0,0.00041643,30]
[312088877,1705608655128,-526.45,0.00041643,30]
[312088878,1705608655140,-500.0,0.00041643,30]
[312088879,1705608655149,-503.61570195,0.00041643,30]
[312088880,1705608655158,-500.0,0.00041643,30]
[312088881,1705608655167,-500.0,0.00041643,30]
[312088882,1705608655176,-500.0,0.00041643,30]
[312088883,1705608655185,-500.0,0.00041643,30]
[312088884,1705608655195,-500.0,0.00041643,30]
[312088885,1705608655204,-500.0,0.00041643,30]
[312088886,1705608655216,-954.28,0.00041643,30]
[312088887,1705608655225,-500.0,0.00041643,30]
[312088888,1705608655234,-384.78079638,0.00041643,30]
[312088889,1705608655243,-529.44108688,0.00041643,30]
[312088890,1705608655254,-500.0,0.00041643,30]
[312088891,1705608655263,-502.96290202,0.00041643,30]
[312088892,1705608655271,-500.0,0.00041643,30]
[312088893,1705608655281,-500.0,0.00041643,30]
[312088894,1705608655293,-500.0,0.00041643,30]
[312088895,1705608655303,-500.0,0.00041643,30]
[312088896,1705608655312,-500.0,0.00041643,30]
[312088897,1705608655321,-506.54726453,0.00041643,30]
[312088898,1705608655330,-626.48,0.00041643,30]
[312088899,1705608655340,-521.6859121,0.00041643,30]
[312088900,1705608655349,-500.0,0.00041643,30]
[312088901,1705608655359,-500.0,0.00041643,30]
[312088902,1705608655368,-500.0,0.00041643,30]
[312088903,1705608655377,-500.0,0.00041643,30]
[312088904,1705608655386,-500.0,0.00041643,30]
[312088905,1705608655398,-500.0,0.00041643,30]
[312088906,1705608655409,-500.0,0.00041643,30]
[312088907,1705608655419,-500.0,0.00041643,30]
[312088908,1705608655429,-503.4258123,0.00041643,30]
[312088909,1705608655438,-507.70691761,0.00041643,30]